Cogmind - Beta 14 @@@ ROGUE MODE // 2025.05.01 @ 23:19:14 Player: GiggleBox Result: Destroyed by as-33698 with Assembled Blade Performance ------------- Evolutions (0) 0 Regions Visited (2) 400 Robots Destroyed (28) 140 Value Destroyed (539) 539 Prototype IDs (0) 0 Alien Tech Used (0) 0 Bonus (0) 0 TOTAL SCORE: 1079 Bonus ------- None Cogmind --------- Core Integrity 0/250 Matter 300/300 Energy 98/100 System Corruption 0% Temperature Cool (0) Movement Core (50) Location -10/Mines Parts ------- > --- POWER (1) -------- (None) > --- PROPULSION (2) --- (None) > --- UTILITY (2) ------ (None) > --- WEAPON (2) ------- (None) > --- INVENTORY (5) ---- Aluminum Leg Aluminum Leg Structural Scanner Seismic Detector Datajack Peak State ------------ > --- POWER ------------ Ion Engine > --- PROPULSION ------- Aluminum Leg Aluminum Leg > --- UTILITY ---------- Small Storage Unit Hacking Suite > --- WEAPON ----------- Assault Rifle Assault Rifle > --- INVENTORY -------- Ion Engine Structural Scanner Improved Terrain Scanner Seismic Detector Tractor Beam Assault Rifle Datajack Mining Laser [Rating: 10] Favorites ----------- Power Ion Engine Engine Ion Engine Propulsion Aluminum Leg Leg Aluminum Leg Utility Hacking Suite Device Seismic Detector Storage Medium Storage Unit Hackware Hacking Suite Weapon Assault Rifle Ballistic Gun Assault Rifle Build | -11 -10 -10 ------- Run | Yrd Mat Min Slots Evolved . | . . . Power . | . . . Propulsion . | . . . Utility . | . . . Weapon . | . . . Parts Attached 22 | 7 13 2 Power 1 | 1 . . Engine 1 | 1 . . Core . | . . . Reactor . | . . . Propulsion 8 | 2 5 1 Treads . | . . . Leg 8 | 2 5 1 Wheel . | . . . Hover . | . . . Flight . | . . . Utility 4 | 2 2 . Device 1 | 1 . . Storage 2 | 1 1 . Processor . | . . . Hackware 1 | . 1 . Protection . | . . . Artifact . | . . . Weapon 9 | 2 6 1 Energy Gun . | . . . Energy Cannon . | . . . Ballistic Gun 9 | 2 6 1 Ballistic Cannon . | . . . Launcher . | . . . Special Weapon . | . . . Impact Weapon . | . . . Slashing Weapon . | . . . Piercing Weapon . | . . . Special Melee Weapon . | . . . Unidentified Prototypes . | . . . Parts Lost 3 | . . 3 Power 1 | . . 1 Propulsion . | . . . Utility . | . . . Weapon 2 | . . 2 Highest Loss Streak 3 | . . 3 To Critical Strikes . | . . . Average Slot Usage (%) 98 | . 100 95 Engine 13 | . 14 13 Leg 27 | . 28 26 Device 3 | . 5 . Storage 13 | . 14 13 Hackware 10 | . 8 13 Ballistic Gun 27 | . 28 26 Peak Build Rating 10 | 7 10 10 Average Rating 8 | 6 9 9 On Entrance 5 | . 7 10 Naked Turns 21 | . . 21 Heaviest Build 19 | 14 19 19 Greatest Support 20 | 20 20 20 Greatest Overweight (x) 4 | 4 . . Average Overweight (x) . | . . . Largest Inventory Capacity 10 | 8 10 10 Average Capacity 9 | 7 9 9 Most Carried 10 | 5 10 10 Average Carried 8 | 2 8 9 Final Capacity 10 | 8 10 5 Final Carried 10 | 5 10 5 Class Distribution -------------------- 100% | Mutant Dominant Class ---------------- Mutant | -10/Materials Mutant | -10/Mines Resources | -11 -10 -10 ----------- Run | Yrd Mat Min Matter Collected 931 | 306 423 202 Remotely . | . . . Salvage Created 1042 | 152 582 308 Parts 62 | 11 41 10 Haulers Intercepted 2 | . 2 . Recyclers Shooed 3 | 1 1 1 Parts Field Recycled . | . . . Retrieved Matter . | . . . Parts Self-Destructed . | . . . Prevented . | . . . Kills | -11 -10 -10 ------- Run | Yrd Mat Min Combat Hostiles Destroyed 18 | . 11 7 Guns 18 | . 11 7 Classes Destroyed 8 | 2 5 1 Tunneler 4 | 4 . . Hauler 2 | . 2 . Recycler 3 | 1 1 1 Operator 1 | . 1 . Watcher 3 | . 3 . Swarmer 6 | . 6 . Grunt 9 | . 5 4 Assembled 3 | . . 3 Best Kill Streak 4 | 3 4 3 Combat Bots Only 3 | . 3 2 Max Kills in Single Turn 1 | 1 1 1 Gunslinging . | . . . Exploded . | . . . Melee . | . . . Uniques/NPCs Destroyed . | . . . Combat | -11 -10 -10 -------- Run | Yrd Mat Min Hostile Shots Fired 133 | . 73 60 Missed 48 | . 26 22 Damage Taken 1114 | . 447 667 Core 268 | . 89 179 Absorbed by Shields . | . . . Core Remaining (%) 100 | 100 . . Volleys Fired 100 | 9 59 32 Largest 2 | 2 2 2 Hottest 40 | 40 40 40 Shots Fired 195 | 18 118 59 Gun 195 | 18 118 59 Cannon . | . . . Launcher . | . . . Special . | . . . Kinetic 195 | 18 118 59 Thermal . | . . . Explosive . | . . . Electromagnetic . | . . . Robot Hit Streak 7 | 3 7 6 Robot Miss Streak 8 | 3 8 6 Penetration Max . | . . . Secondary Targets 5 | . 3 2 Max Gunslinging Chain 1 | . 1 1 Shots Hit Robots 107 | 8 73 26 Core Hits 58 | 7 31 20 Critical Kills . | . . . Critical Parts Destroyed . | . . . Critical Strikes . | . . . Melee Attacks . | . . . Impact . | . . . Slashing . | . . . Piercing . | . . . Sneak Attacks . | . . . Combat Hostiles . | . . . Follow-up Attacks . | . . . Damage Inflicted 1379 | 96 928 355 Guns 1355 | 96 904 355 Cannons . | . . . Explosions . | . . . Melee . | . . . Ramming 24 | . 24 . Kinetic 1355 | 96 904 355 Thermal . | . . . Explosive . | . . . Electromagnetic . | . . . Impact . | . . . Slashing . | . . . Piercing . | . . . Highest Corruption . | . . . Average Corruption . | . . . Corruption Purged . | . . . Corruption Blocked . | . . . Overload Shots . | . . . Overflow Damage . | . . . Projectiles . | . . . Explosions . | . . . Melee . | . . . Knockbacks . | . . . Impact . | . . . Kinetic . | . . . Secondary . | . . . Self-Inflicted Damage . | . . . Shots . | . . . Rammed . | . . . Targets Rammed 4 | . 4 . Kicked 4 | . 4 . Crushed . | . . . Highest Temperature 12 | . 12 2 Average Temperature 4 | . 5 2 Received Heat Transfer 189 | . 102 87 Siege Activations . | . . . Robots Corrupted . | . . . Combat Hostiles . | . . . Parts Fried . | . . . Impact Corruptions . | . . . Robots Melted . | . . . Combat Hostiles . | . . . Parts Melted . | . . . Heat Transferred . | . . . Parts Sabotaged . | . . . Parts Stolen . | . . . Parts Stripped . | . . . Power Chain Reactions . | . . . Alert | -11 -10 -10 ------- Run | Yrd Mat Min Peak Influence 372 | 25 372 145 Initial 40 | . 16 40 Average 114 | 10 155 79 Maximum Alert Level 1 | . 1 . Low Security (%) 76 | 100 57 100 Level 1 23 | . 42 . Level 2 . | . . . Level 3 . | . . . Level 4 . | . . . Level 5 . | . . . High Security . | . . . Max Security . | . . . Squads Dispatched 2 | . 2 . Investigation . | . . . Extermination . | . . . Reinforcement 2 | . 2 . Assault . | . . . Garrison . | . . . Intercept . | . . . Searches Triggered . | . . . Construction Impeded . | . . . Haulers Reinforced . | . . . Active Scanning Responses . | . . . Cargo Convoy Interrupts . | . . . Stealth | -11 -10 -10 --------- Run | Yrd Mat Min Distress Signals . | . . . Communications Jammed . | . . . Distress Signals . | . . . Times Spotted 36 | . 22 14 Peak Tracking Total 5 | . 5 4 Tactical Retreats 3 | . . 3 Traps | -11 -10 -10 ------- Run | Yrd Mat Min Traps Triggered . | . . . Indirectly . | . . . Trap Hack Attempts . | . . . Triggered . | . . . Disarmed . | . . . Reprogrammed . | . . . Reused . | . . . Traps Extracted . | . . . Installed . | . . . Triggered . | . . . Machines | -11 -10 -10 ---------- Run | Yrd Mat Min Machines Disabled 2 | . 2 . Max in Single Turn 1 | . 1 . Machines Repaired . | . . . Machines Dismantled . | . . . Machines Sabotaged . | . . . Overloaded Fab Kills . | . . . Hacking | -11 -10 -10 --------- Run | Yrd Mat Min Machines Accessed 7 | . 7 . Terminals 6 | . 6 . Fabricators . | . . . Repair Stations . | . . . Recycling Units 1 | . 1 . Scanalyzers . | . . . Garrison Access . | . . . Total Hacks 17 | . 17 . Successful 8 | . 8 . Failed 9 | . 9 . Catastrophic . | . . . Database Lockouts . | . . . Manual 17 | . 17 . Terminals 15 | . 15 . Fabricators . | . . . Repair Stations . | . . . Recycling Units 2 | . 2 . Scanalyzers . | . . . Garrison Access . | . . . Terminal Hacks . | . . . Fabricator Hacks . | . . . Repair Station Hacks . | . . . Recycling Unit Hacks . | . . . Scanalyzer . | . . . Garrison Access Hacks . | . . . Unauthorized Hacks 8 | . 8 . Terminals 7 | . 7 . Botnet 1 | . 1 . Operators 1 | . 1 . Skim 5 | . 5 . Fabricators . | . . . Repair Stations . | . . . Recycling Units 1 | . 1 . Monitor 1 | . 1 . Scanalyzers . | . . . Garrison Access . | . . . Data Cores Recovered . | . . . Used . | . . . Hacking Detections 5 | . 5 . Full Trace Events . | . . . Feedback Events . | . . . Feedback Blocked . | . . . Robot Schematics Acquired . | . . . Robots Built . | . . . Authchips . | . . . Time . | . . . Total Robot Build Rating . | . . . Part Schematics Acquired . | . . . Parts Built . | . . . Authchips . | . . . Time . | . . . Total Part Build Rating . | . . . Parts Repaired . | . . . Time . | . . . Parts Recycled . | . . . Recycled Matter . | . . . Retrieved Matter . | . . . Retrieved Components . | . . . Parts Scanalyzed . | . . . Part Schematics Acquired . | . . . Parts Damaged . | . . . Bothacking | -11 -10 -10 ------------ Run | Yrd Mat Min Used RIF Installer . | . . . Robots Hacked . | . . . Non-combat . | . . . Combat . | . . . Robot Hacks Applied . | . . . Relay Couplers Released . | . . . Fabnet Peak Effective % . | . . . Robots Rewired . | . . . Allies Hacked . | . . . Hacks Repelled . | . . . Allies | -11 -10 -10 -------- Run | Yrd Mat Min Total Allies . | . . . Largest Group . | . . . Highest-Rated Group . | . . . Highest-Rated Ally . | . . . Total Orders . | . . . Ally Attacks . | . . . Total Damage . | . . . Kills . | . . . Allies Corrupted . | . . . Allies Melted 1 | . . 1 Intel | -11 -10 -10 ------- Run | Yrd Mat Min Robot Analysis Total . | . . . Derelict Logs Recovered 1 | . . 1 Drone Launches . | . . . Drone Recoveries . | . . . Exploration | -11 -10 -10 ------------- Run | Yrd Mat Min Turns Passed 1979 | 183 1085 711 Spaces Moved 1382 | 117 728 537 Core 56 | 14 . 42 Treads . | . . . Legs 1326 | 103 728 495 Wheels . | . . . Hover . | . . . Flight . | . . . Fastest Speed 50 | 50 120 50 Average Speed 118 | 122 120 114 Slowest Speed 250 | 250 120 120 Overloaded Moves . | . . . Propulsion Burnouts . | . . . Robots Hopped . | . . . Cave-ins Triggered . | . . . Exploration Rate (%) 62 | 6 98 84 Regions Visited 2 Branch Regions 1 Pre-discovered Areas . | . . . Known Exits Taken 1 | . 1 . Unknown Exits Taken 1 | 1 . . Scrap Searched 1 | . . 1 Spaces Dug . | . . . Terrain Destroyed . | . . . Melee . | . . . Projectile . | . . . AOE . | . . . Terrain Rammed . | . . . Walls Destroyed . | . . . Machines Disabled . | . . . Actions | -11 -10 -10 --------- Run | Yrd Mat Min Total 1542 | 137 830 575 Wait 11 | . 10 1 Move 1380 | 116 727 537 Hop . | . . . Pick Up 11 | 5 5 1 Fast Attach 7 | 7 . . Attach 1 | . . 1 Detach . | . . . Swap 14 | . 13 1 Drop 14 | . 12 2 Fire 100 | 9 59 32 Melee . | . . . Ram . | . . . Kick 4 | . 4 . Crush . | . . . Escape Stasis . | . . . Rewire . | . . . Trap . | . . . Miscellaneous . | . . . Route ------- -11/Scrapyard -10/Materials (discovered 5 exits: *Mat x3 / *Min x2) -10/Mines (discovered 1 exit: *Mat) History --------- Turn | Location | Event 28 | -11/Scrapyard | Discovered new exit (range 15) 184 | -11/Scrapyard | Entered Materials 318 | -10/Materials | Build established: Mutant 627 | -10/Materials | Discovered new exit (range 15) 755 | -10/Materials | Discovered new exit (range 16) 873 | -10/Materials | Learned Storage stockpile data 915 | -10/Materials | Discovered new exit (range 10) 943 | -10/Materials | Learned 2 Storage zone layouts 1001 | -10/Materials | Identified exit to Mines 1048 | -10/Materials | Identified exit to Materials 1086 | -10/Materials | Learned 4 Subcaves zone layouts 1132 | -10/Materials | Learned location of 1 exit from Storage 1190 | -10/Materials | Learned Storage trap positions 1269 | -10/Materials | Entered Mines 1315 | -10/Mines | Met a Derelict bent on vengeance 1316 | -10/Mines | Core integrity fell below 50% 1356 | -10/Mines | Discovered exit to Materials (range 3) 1750 | -10/Mines | Assembled infested the area 1755 | -10/Mines | Assisted by a Guerilla fighting off Assembled 1956 | -10/Mines | Core integrity fell below 20% 1959 | -10/Mines | Released all parts (5) 1980 | -10/Mines | Destroyed by as-33698 with Assembled Blade Last Messages --------------- 01799_ Found Hammer. 01799_ Found Lrg. Storage Unit. 01799_ Found Core Shielding. 01799_ Found 62 Matter. 01803_ Dropped Mining Laser. 01804_ Acquired Hammer. 01858_ as-23724 destroyed. 01861_ Acquired 12 matter. 01895_ as-53099 destroyed. 01903_ as-10543 destroyed. 01915_ Acquired 24 matter. 01918_ Acquired 6 matter. 01931_ Ion Engine destroyed. 01948_ Assault Rifle destroyed. 01959_ Released Aluminum Leg. 01959_ Released Med. Storage Unit. 01959_ Released Hacking Suite. 01959_ Released Assault Rifle. 01970_ Acquired 12 matter. 01971_ Acquired 46 matter. Map ----- +----------------------------------------------------+ | ??????# ## ####???????????# #??? | | ??????# #??????????????# #??? | | ??????## #??????????????# #??? | | ???????# ######????????????### #??? | | ?????### #????????????????## ### | | ????## ##???????????## ### | | ????# ####???????????## | | ????# ##??????????????# | | ????# """ ##???????????? | | ????# """ ##??????????? | | ????# """ #????????????### | | ????# ######### #????## | | ????## #?????## | | ????## ###########???????## #### | | ????# ## ##??????????????????####???## | | ????# ### #???????????????????????????# | | ???## #?# #????????????????????####???## | | ???# #?# ##########??????###### ####### | | ???# ##?# % #??????# =!! # | | ???# #??########## #??????# ##%! | | ???# #???????????# #????### ###= | | ???# #???????????# #??### #?# | | ???# #???????????# #??# #?## | | ???# #?????????### #### #??## | | | ???# #?????????# a % #???#### =% | | ???# #?????????#@####### #?????## ! | | ???# ??????? #?????## #??????# | | ???# ????### #??????# #??????## # | | ???##### ##?????# #?????? ##???????#"# | | ???????? ?????# ?????? ##????????### | | ?????????"""????# #?????## ##???????????? | | ??????????"" ??? #??????####????????????? | | ??????????"" #??###?????????????????# % %% | | ????????????????????????????????????# #### | | ?????????????????????????????????????????? | | ?????????????????????????????????????????? | | ?????????????????????????????????????????? | | ?????????????????????????????????????????? | | ?????????????????????????????????????????? | | ?????????????????????????????????????????? | | ?????????????????????????????????????????? | | ?????????????????????????????????????????? | | ?????????????????????????????????????????? | | ?????????????????????????????????????????? | | ?????????????????????????????????????????? | | ?????????????????????????????????????????? | | ?????????????????????????????????????????? | | ?????????????????????????????????????????? | | | | | +----------------------------------------------------+ Best States ------------- Heat Dissipation 25 Energy Generation 10 Energy Capacity 250 Matter Stores 300 Matter Capacity 300 Sight Range 16 Terrain Scan Density 10 Evasion (%) 55 Offensive Hacking 10 Item Schematics ----------------- None Robot Schematics ------------------ None Fabricated ------------ Nothing Alien Tech Used ----------------- None Achievements -------------- None Challenges ------------ None Game ------ Seed NuclearRelayTearclaws Manual? 0 Play Time 00:17:12 Cumulative 61.8 hours Start 2025.05.01 @ 23:05:59 End 2025.05.01 @ 23:19:14 Sessions 1 Manual Loads 0 Difficulty Rogue Special Mode None Game No. 71 Rogue 71 Adventurer 0 Explorer 0 Win Type - Total 0 Types 0/0/0/0/0/0/0/0/0 Lore% 18 Gallery% 39 Achievement% 33 Wizard Run 0 Options --------- Layout 0 ASCII 0 Keyboard 1 Movement Numpad Keybinds 0 Fullscreen 1 Font 24/Terminus Map View 76x50 Zoom Use 0% Tactical HUD 1 Map Filters NONE Filters NONE Steam 1 RUN: 45bc4f84-64f0-4df6-bdc5-74a499497ead